fUST/lending_fUST_20260226
["ID","MTS","AMOUNT","RATE_DAILY","PERIOD"]
[406695052,1772092239104,-271.94220446,0.00018905,2]
[406695053,1772092239114,-179.506,0.00018919,2]
[406695054,1772092239123,-294.1,0.00018925,2]
[406695055,1772092239132,-3910.2167868,0.00019131,2]
[406695056,1772092239143,-403.0,0.00019217,2]
[406695057,1772092239152,-600.0,0.00019247,2]
[406695058,1772092239162,-256.1363,0.00019339,30]
[406695059,1772092239171,-2674.60743027,0.00019419,2]
[406695060,1772092239180,-294.1,0.00019563,2]
[406695061,1772092239189,-306.281045,0.00019598,7]
[406695062,1772092239200,-405.7497624,0.000196,2]
[406695063,1772092239209,-637.0,0.000196,2]
[406695064,1772092239219,-2181.0,0.000196,2]
[406695065,1772092239228,-1386.0,0.000196,2]
[406695066,1772092239237,-850.7181578,0.00019846,2]
[406695067,1772092239247,-14046.2942401,0.00019846,2]
[406695068,1772092239256,-2055.50571089,0.000199,3]
[406695069,1772092239265,-786.0,0.000199,2]
[406695070,1772092239274,-161.0,0.00019952,2]
[406695071,1772092239283,-102083.54683908,0.0002,2]
[406695072,1772092239293,-160.0,0.0002,3]
[406695073,1772092239302,-166.84810885,0.0002,5]
[406695074,1772092239311,-160.0,0.0002,3]
[406695075,1772092239322,-54.45538415,0.0002,5]
[406695076,1772092239334,-105.54461585,0.0002,5]
[406695077,1772092239343,-1013.971358,0.0002,5]
[406695078,1772092239354,-500.0,0.0002,2]
[406695079,1772092239363,-1000.0,0.0002,2]
[406695080,1772092239373,-250.0,0.0002,10]
[406695081,1772092239385,-41.97256442,0.0002,2]
[406695088,1772092241054,-168.88670412,0.00015957,2]
[406695089,1772092241065,-199.28631086,0.00017957,2]
[406695090,1772092241075,-229.6859176,0.00019957,2]
[406695091,1772092241085,-108.02743558,0.0002,2]
[406695092,1772092241095,-4747.33737896,0.0002,2]
[406695093,1772092241106,-212.98831454,0.0002,2]
[406695094,1772092241116,-1271.4964214,0.0002,2]
[406695095,1772092241125,-971.31023848,0.000201,2]
[406695096,1772092241136,-300.67410148,0.000201,2]
[406695103,1772092246232,-59.65321981,0.000201,2]
[406695104,1772092246249,-668.36244023,0.000201,2]
[406695105,1772092246258,-250.0,0.000201,10]
[406695106,1772092246268,-575.513887,0.00020139,2]
[406695107,1772092246277,-162.0,0.00020164,2]
[406695108,1772092246287,-162.0,0.00020177,2]
[406695109,1772092246296,-2736.85221497,0.00020184,2]
[406695110,1772092246306,-3466.57988215,0.00020196,2]
[406695111,1772092246316,-2000.0,0.000202,2]
[406695112,1772092246326,-250.0,0.000202,10]
[406695113,1772092246336,-294.1,0.000202,2]
[406695114,1772092246346,-3027.49368103,0.0002025,41]
[406695115,1772092246356,-4183.55984125,0.00020288,2]
[406695116,1772092246366,-2000.0,0.000203,2]
[406695117,1772092246375,-250.0,0.000203,10]
[406695119,1772092246384,-200.10295897,0.00020301,2]
[406695120,1772092246394,-7963.0,0.00020349,120]
[406695121,1772092246403,-547.7280467,0.00020399,39]
[406695122,1772092246413,-689.08511609,0.00020399,39]
[406695123,1772092246422,-1633.581,0.000204,2]
[406695124,1772092246434,-1300.537,0.000204,2]
[406695125,1772092246443,-2000.0,0.000204,2]
[406695126,1772092246452,-2186.8,0.000204,120]
[406695127,1772092246462,-250.0,0.000204,10]
[406695128,1772092246471,-715.0,0.00020497,2]
[406695129,1772092246481,-250.0,0.000205,10]
[406695130,1772092246490,-5431.14159036,0.00020543,2]
[406695131,1772092246501,-458.102991,0.00020548,2]
[406695132,1772092246510,-852.57,0.00020554,2]
[406695133,1772092246520,-244.28754087,0.00020567,40]
[406695134,1772092246529,-305.86171464,0.00020567,40]
[406695135,1772092246539,-400.9512445,0.00020567,40]
[406695136,1772092246549,-500.0,0.00020594,2]
[406695138,1772092246561,-3027.49368103,0.00020597,43]
[406695139,1772092246570,-250.0,0.000206,10]
[406695140,1772092246580,-1397.3236978,0.0002061,2]
[406695141,1772092246589,-163.74,0.00020672,2]
[406695142,1772092246599,-250.0,0.000207,10]
[406695143,1772092246609,-6760.80129602,0.00020781,2]
[406695144,1772092246619,-250.0,0.000208,10]
[406695145,1772092246631,-294.1,0.00020837,2]
[406695146,1772092246641,-403.0,0.0002085,2]
[406695147,1772092246650,-715.0,0.0002085,2]
[406695148,1772092246659,-547.7280467,0.00020869,42]
[406695149,1772092246669,-689.08511609,0.00020869,42]
[406695150,1772092246679,-257.97223624,0.000209,2]
[406695151,1772092246688,-250.0,0.000209,10]
[406695152,1772092246698,-575.513887,0.00020921,2]
[406695153,1772092246707,-3027.49368103,0.00020944,46]
[406695154,1772092246717,-34777.56224777,0.0002099,2]
[406695155,1772092246726,-279.0341755,0.00021,2]
[406695156,1772092246736,-1572.48850364,0.00021,10]
[406695157,1772092246745,-2720.0,0.00021,2]
[406695158,1772092246754,-50000.0,0.00021,2]
[406695159,1772092246763,-1000.0,0.00021,2]
[406695160,1772092246773,-5015.81082769,0.00021,5]
[406695161,1772092246782,-3000.0,0.00021,2]
[406695162,1772092246791,-200.0,0.00021,30]
[406695163,1772092246800,-200.0,0.00021,30]
[406695164,1772092246810,-362.46276798,0.00021,30]
[406695165,1772092246819,-250.0,0.00021,10]
[406695166,1772092246828,-150.0,0.00021,2]
[406695167,1772092246837,-3000.0,0.0002101,2]
[406695168,1772092246847,-3000.0,0.0002102,2]
[406695169,1772092246856,-3000.0,0.0002103,2]
[406695170,1772092246865,-487.0,0.0002103,2]
[406695171,1772092246875,-487.0,0.0002103,2]
[406695172,1772092246884,-487.0,0.0002103,2]
[406695173,1772092246894,-487.0,0.0002103,2]
[406695174,1772092246904,-487.0,0.0002103,2]
[406695175,1772092246913,-487.0,0.0002103,2]
[406695176,1772092246923,-487.0,0.0002103,2]
[406695177,1772092246932,-487.0,0.0002103,2]
[406695178,1772092246942,-487.0,0.0002103,2]
[406695179,1772092246951,-487.0,0.0002103,2]
[406695180,1772092246960,-487.0,0.0002103,2]
[406695181,1772092246969,-518.63,0.0002103,2]
[406695182,1772092246979,-3000.0,0.0002104,2]
[406695183,1772092246988,-3000.0,0.0002105,2]
[406695184,1772092246997,-3000.0,0.0002106,2]
[406695185,1772092247007,-670.70333016,0.0002107,2]
[406695186,1772092247049,-2329.29666984,0.0002107,2]
[406695187,1772092247058,-3000.0,0.0002108,2]
[406695188,1772092247068,-3000.0,0.0002109,2]
[406695189,1772092247077,-3000.0,0.000211,2]
[406695190,1772092247087,-250.0,0.000211,10]
[406695191,1772092247096,-1517.7888183,0.0002111,2]
[406695192,1772092247141,-1482.2111817,0.0002111,2]
[406695193,1772092247151,-151.0,0.0002111,2]
[406695194,1772092247160,-3000.0,0.0002112,2]
[406695195,1772092247169,-82.7725958,0.00021129,2]
[406695196,1772092430443,-300.0,0.00012998,2]
[406695197,1772092430465,-300.0,0.00012999,2]
[406695198,1772092430480,-299.59400053,0.00012999,2]
[406695199,1772092430489,-100.40599947,0.00012999,2]
[406695200,1772092438906,-399.59400053,0.00012999,2]
[406695201,1772092438925,-399.59400053,0.00012999,2]
[406695202,1772092438936,-100.40599947,0.00012999,2]
[406695203,1772092438945,-100.40599947,0.00012999,2]
[406695205,1772092633587,19326.0,0.00012,2]
[406695206,1772092649043,121209.85,0.00012,2]
[406695207,1772092674231,3052.19244595,0.00012001,2]
[406695208,1772092682394,2090.3563403,0.00012001,2]
[406695209,1772092740387,4331.29195368,0.00012001,2]
[406695211,1772092840771,5000.0,0.00012001,2]
[406695212,1772092843616,-592.0,0.00012205,2]
[406695213,1772092843679,-251.39145325,0.00012327,2]
[406695214,1772092872949,-592.0,0.00012204,2]
[406695215,1772092893104,1341.1412925,0.00012001,2]
[406695216,1772092915913,594.25016075,0.00012001,2]
[406695217,1772092943894,556.91125756,0.0002,120]
[406695218,1772092944516,151.4,0.00012001,2]
[406695219,1772092945092,706.24779343,0.0002,120]
[406695220,1772092946847,1972.05001343,0.0002,120]
[406695222,1772092969940,806.2214708,0.00011861,2]
[406695223,1772093003109,500.47,0.00012,2]
[406695224,1772093059644,5000.0,0.00012001,2]
[406695231,1772093249165,-633.53473782,0.000121,2]
[406695232,1772093252203,-627.32126442,0.000121,2]
[406695233,1772093252229,-1270.72684809,0.000121,2]
[406695234,1772093276090,5000.0,0.00012001,2]
[406695235,1772093281095,189.89,9.99e-05,2]
[406695236,1772093281380,189.89,9.99e-05,2]
[406695237,1772093302013,885.84260981,0.00012001,2]
[406695238,1772093321969,2000.0,7.5e-05,2]
[406695239,1772093342903,2000.0,8.8e-05,2]
[406695240,1772093347302,-477.04714967,0.000121,2]
[406695241,1772093347360,-216.63,0.000121,2]
[406695242,1772093347421,-221.67947739,0.00012122,2]
[406695243,1772093347483,-1200.0,0.00012326,2]
[406695244,1772093347540,-300.0,0.00012327,2]
[406695245,1772093347598,-300.0,0.00012327,2]
[406695246,1772093347656,-300.0,0.00012328,2]
[406695247,1772093347932,-300.0,0.00012328,2]
[406695248,1772093347993,-1293.99,0.00012329,2]
[406695249,1772093348056,-1078.33,0.00012329,2]
[406695250,1772093348117,-898.6,0.00012329,2]
[406695251,1772093348179,-748.84,0.00012329,2]
[406695252,1772093348239,-624.03,0.00012329,2]
[406695253,1772093348298,-520.03,0.00012329,2]
[406695254,1772093348356,-433.35,0.00012329,2]
[406695255,1772093348416,-361.13,0.00012329,2]
[406695256,1772093348476,-300.94,0.00012329,2]
[406695257,1772093348533,-250.78,0.00012329,2]
[406695258,1772093348594,-208.99,0.00012329,2]
[406695259,1772093348651,-174.16,0.00012329,2]
[406695260,1772093348711,-870.8,0.00012329,2]
[406695261,1772093348772,-7067.16472371,0.00012329,2]
[406695262,1772093348832,-500.0,0.00012572,2]
[406695263,1772093348891,-500.0,0.00012572,2]
[406695264,1772093348958,-500.0,0.00012572,2]
[406695265,1772093349023,-500.0,0.00012572,2]
[406695266,1772093349083,-500.0,0.00012572,2]
[406695267,1772093349148,-500.0,0.00012572,2]
[406695268,1772093349207,-500.0,0.00012572,2]
[406695269,1772093349267,-500.0,0.00012572,2]
[406695270,1772093349324,-500.0,0.00012572,2]
[406695271,1772093349381,-500.0,0.00012572,2]
[406695272,1772093349438,-500.0,0.00012572,2]
[406695273,1772093349496,-500.0,0.00012572,2]
[406695274,1772093349552,-500.0,0.00012572,2]
[406695275,1772093349610,-500.0,0.00012572,2]
[406695276,1772093349666,-500.0,0.00012572,2]
[406695277,1772093349721,-500.0,0.00012572,2]
[406695278,1772093349777,-500.0,0.00012572,2]
[406695279,1772093349833,-500.0,0.00012572,2]
[406695280,1772093349895,-500.0,0.00012572,2]
[406695281,1772093349953,-500.0,0.00012572,2]
[406695282,1772093350010,-500.0,0.00012572,2]
[406695283,1772093350064,-272.21689119,0.00012572,2]
[406695284,1772093350127,-500.0,0.00012572,2]
[406695285,1772093350189,-248.50758735,0.00012572,2]
[406695286,1772093350248,-500.0,0.00012572,2]
[406695287,1772093350309,-500.0,0.00012572,2]
[406695288,1772093350366,-573.4691181,0.00012572,2]
[406695289,1772093350426,-166.28330316,0.00012572,2]
[406695290,1772093350484,-500.0,0.00012572,2]
[406695291,1772093350544,-500.0,0.00012572,2]
[406695292,1772093350600,-500.0,0.00012572,2]
[406695293,1772093350656,-500.0,0.00012572,2]
[406695294,1772093350710,-500.0,0.00012572,2]
[406695295,1772093350765,-500.0,0.00012572,2]
[406695296,1772093350818,-500.0,0.00012573,2]
[406695297,1772093350875,-300.0,0.00012574,2]
[406695298,1772093350933,-300.0,0.00012574,2]
[406695299,1772093350991,-300.0,0.00012574,2]
[406695300,1772093351057,-300.0,0.00012574,2]
[406695301,1772093351139,-300.0,0.00012574,2]
[406695302,1772093351218,-300.0,0.00012574,2]
[406695303,1772093351285,-300.0,0.00012574,2]
[406695304,1772093351356,-300.0,0.00012574,2]
[406695305,1772093351426,-300.0,0.00012574,2]
[406695306,1772093351494,-300.0,0.00012574,2]
[406695307,1772093351561,-300.0,0.00012574,2]
[406695308,1772093351636,-300.0,0.00012574,2]
[406695309,1772093351704,-300.0,0.00012574,2]
[406695310,1772093351766,-300.0,0.00012574,2]
[406695311,1772093351826,-300.0,0.00012574,2]
[406695312,1772093351887,-600.0,0.00012574,2]
[406695313,1772093351945,-177.24,0.000127,2]
[406695314,1772093352001,-500.0,0.00012847,2]
[406695315,1772093352057,-7373.87425041,0.000129,2]
[406695316,1772093352115,-500.0,0.00013121,2]
[406695317,1772093352175,-500.59269295,0.00013273,2]
[406695318,1772093352234,-500.0,0.00013273,2]
[406695319,1772093352290,-502.67761408,0.00013273,2]
[406695320,1772093352348,-500.0,0.00013273,2]
[406695321,1772093352406,-500.0,0.00013273,2]
[406695322,1772093352463,-500.0,0.00013273,2]
[406695323,1772093352518,-500.0,0.00013273,2]
[406695324,1772093352575,-500.0,0.00013273,2]
[406695325,1772093352630,-500.0,0.00013273,2]
[406695326,1772093352685,-500.53822759,0.00013273,2]
[406695327,1772093352739,-500.0,0.00013273,2]
[406695328,1772093352793,-500.0,0.00013273,2]
[406695329,1772093352848,-500.0,0.00013273,2]
[406695330,1772093352902,-265.88112738,0.00013273,2]
[406695331,1772093352960,-203.36741524,0.00013273,2]
[406695332,1772093353038,-557.02949239,0.00013273,2]
[406695333,1772093353114,-500.0,0.00013273,2]
[406695334,1772093353178,-500.0,0.00013273,2]
[406695335,1772093353239,-318.05773044,0.00013273,2]
[406695336,1772093353298,-500.63822642,0.00013273,2]
[406695337,1772093353359,-301.00658694,0.00013273,2]
[406695338,1772093353419,-500.0,0.00013273,2]
[406695339,1772093353485,-233.91653218,0.00013273,2]
[406695340,1772093353547,-500.0,0.00013273,2]
[406695341,1772093353611,-500.0,0.00013273,2]
[406695342,1772093353671,-500.0,0.00013273,2]
[406695343,1772093353732,-500.0,0.00013273,2]
[406695344,1772093353791,-500.0,0.00013273,2]
[406695345,1772093353852,-500.0,0.00013273,2]
[406695346,1772093353913,-212.02589509,0.00013273,2]
[406695347,1772093353970,-500.0,0.00013273,2]
[406695348,1772093354024,-500.67423389,0.00013273,2]
[406695349,1772093354079,-500.0,0.00013273,2]
[406695350,1772093354137,-219.32069232,0.00013273,2]
[406695351,1772093354192,-500.0,0.00013273,2]
[406695352,1772093354247,-500.0,0.00013395,2]
[406695353,1772093354304,-1000.0,0.000134,2]
[406695354,1772093354360,-1000.0,0.000134,2]
[406695355,1772093354417,-1000.0,0.000134,2]
[406695356,1772093354472,-1000.0,0.000134,2]
[406695357,1772093354525,-1000.0,0.000134,2]
[406695358,1772093354581,-420.0,0.00013528,2]
[406695359,1772093354635,-420.0,0.00013528,2]
[406695360,1772093354689,-420.0,0.00013529,2]
[406695361,1772093354743,-420.0,0.00013529,2]
[406695362,1772093354795,-173.49876684,0.00013534,2]
[406695363,1772093354851,-150.0,0.00013534,2]
[406695364,1772093354913,-150.0,0.00013534,2]
[406695365,1772093354974,-1680.0,0.00013559,2]
[406695366,1772093355030,-500.0,0.00013569,2]
[406695367,1772093355086,-193.08,0.00013569,2]
[406695368,1772093355147,-193.08,0.00013569,2]
[406695369,1772093355209,-150.0,0.00013589,2]
[406695370,1772093355270,-150.0,0.00013589,2]
[406695371,1772093355328,-150.0,0.00013644,2]
[406695372,1772093355387,-150.0,0.00013644,2]
[406695373,1772093355446,-500.0,0.00013669,2]
[406695374,1772093355505,-300.0,0.00013673,2]
[406695375,1772093355562,-500.0,0.00013698,2]
[406695376,1772093355774,-505.90176229,0.00013698,2]
[406695377,1772093355845,-500.0,0.00013698,2]
[406695378,1772093355903,-500.0,0.00013698,2]
[406695379,1772093355961,-501.90577709,0.00013698,2]
[406695380,1772093356017,-500.0,0.00013698,2]
[406695381,1772093356074,-551.08217043,0.00013698,2]
[406695382,1772093356130,-466.06359789,0.00013698,2]
[406695383,1772093356192,-500.0,0.00013698,2]
[406695384,1772093356252,-500.0,0.00013698,2]
[406695385,1772093356310,-500.0,0.00013698,2]
[406695386,1772093356369,-500.0,0.00013698,2]
[406695387,1772093356429,-150.0,0.00013698,2]
[406695388,1772093356488,-259.39545107,0.00013698,2]
[406695389,1772093356548,-556.158829,0.00013699,2]
[406695390,1772093356606,-502.603343,0.00013699,2]
[406695391,1772093356663,-500.0,0.00013699,2]
[406695392,1772093356719,-500.0,0.00013699,2]
[406695393,1772093356773,-379.60754264,0.00013699,2]
[406695394,1772093356828,-500.0,0.00013699,2]
[406695395,1772093356883,-500.0,0.00013699,2]
[406695396,1772093356940,-500.0,0.00013699,2]
[406695397,1772093356995,-500.0,0.00013699,2]
[406695398,1772093357050,-500.66744206,0.00013699,2]
[406695399,1772093357104,-500.50202877,0.00013699,2]
[406695400,1772093357161,-448.75309898,0.00013699,2]
[406695401,1772093357218,-500.0,0.00013699,2]
[406695402,1772093357273,-512.06438372,0.00013699,2]
[406695403,1772093357331,-500.0,0.00013699,2]
[406695404,1772093357388,-512.01103336,0.00013699,2]
[406695405,1772093357448,-500.0,0.00013699,2]
[406695406,1772093357510,-500.0,0.00013699,2]
[406695407,1772093357574,-502.5509964,0.00013699,2]
[406695408,1772093357636,-500.0,0.00013699,2]
[406695409,1772093357692,-500.0,0.00013699,2]
[406695410,1772093357745,-500.0,0.00013699,2]
[406695411,1772093357799,-167.0984779,0.00013699,2]
[406695412,1772093357853,-170.1790269,0.00013699,2]
[406695413,1772093357905,-166.0602237,0.00013699,2]
[406695414,1772093357959,-500.0,0.00013699,2]
[406695415,1772093358011,-503.76436484,0.00013699,2]
[406695416,1772093358065,-500.0,0.00013699,2]
[406695417,1772093358117,-500.0,0.00013699,2]
[406695418,1772093358172,-486.2954479,0.00013699,2]
[406695419,1772093358225,-500.0,0.00013699,2]
[406695420,1772093358279,-500.0,0.00013699,2]
[406695421,1772093358332,-263.60923734,0.00013699,2]
[406695422,1772093358387,-500.0,0.00013699,2]
[406695423,1772093358442,-500.0,0.00013699,2]
[406695424,1772093358499,-500.0,0.00013699,2]
[406695425,1772093358555,-150.0,0.000137,2]
[406695426,1772093358608,-150.0,0.00013753,2]
[406695427,1772093358664,-220.91462396,0.00013808,2]
[406695428,1772093358719,-1023.14988653,0.00013821,2]
[406695429,1772093358769,-1000.0,0.00013821,2]
[406695430,1772093358821,-1000.0,0.00013821,2]
[406695431,1772093358871,-1000.0,0.00013821,2]
[406695432,1772093358926,-1000.0,0.00013821,2]
[406695433,1772093358980,-1000.0,0.00013821,2]
[406695434,1772093359032,-1000.0,0.00013821,2]
[406695435,1772093359086,-1000.0,0.00013821,2]
[406695436,1772093359139,-1000.0,0.00013821,2]
[406695437,1772093359193,-1000.0,0.00013821,2]
[406695438,1772093359246,-266.45473474,0.00013821,2]
[406695439,1772093359298,-1000.0,0.00013821,2]
[406695440,1772093359353,-1000.0,0.00013821,2]
[406695441,1772093359409,-1000.0,0.00013821,2]
[406695442,1772093359463,-711.21159501,0.00013821,2]
[406695443,1772093359516,-1000.0,0.00013821,2]
[406695444,1772093359571,-1000.0,0.00013821,2]
[406695445,1772093359623,-1000.0,0.00013821,2]
[406695446,1772093359675,-1000.0,0.00013821,2]
[406695447,1772093359725,-502.89431935,0.00013821,2]
[406695448,1772093359777,-1000.0,0.00013821,2]
[406695449,1772093359826,-1000.0,0.00013821,2]
[406695450,1772093359881,-720.0,0.00013832,2]
[406695451,1772093359936,-500.0,0.00013943,2]
[406695452,1772093359993,-500.0,0.00013973,2]
[406695453,1772093360045,-500.0,0.00013973,2]
[406695454,1772093360100,-502.0165271,0.00014028,2]
[406695455,1772093360157,-501.25617012,0.00014028,2]
[406695456,1772093360218,-261.58178333,0.00014122,2]
[406695457,1772093360281,-2700.83841316,0.00014175,2]
[406695458,1772093360342,-2733.69819427,0.00014175,2]
[406695459,1772093360403,-500.0,0.00014217,2]
[406695460,1772093360464,-600.0,0.00014221,2]
[406695461,1772093360523,-500.0,0.00014246,2]
[406695462,1772093360584,-500.0,0.00014246,2]
[406695463,1772093360642,-500.0,0.00014246,2]
[406695464,1772093360699,-876.15252368,0.00014247,2]
[406695465,1772093360755,-244.6974301,0.00014247,2]
[406695466,1772093360812,-457.13676393,0.00014247,2]
[406695467,1772093360875,-669.39997125,0.00014247,2]
[406695468,1772093360931,-1062.9261049,0.00014247,2]
[406695469,1772093360989,-1000.0,0.00014247,2]
[406695470,1772093361045,-1000.0,0.00014247,2]
[406695471,1772093361101,-504.10747769,0.00014247,2]
[406695472,1772093361157,-446.97054794,0.00014247,2]
[406695473,1772093361217,-1000.0,0.00014247,2]
[406695474,1772093361279,-1114.41709127,0.00014247,2]
[406695475,1772093361345,-1000.0,0.00014247,2]
[406695476,1772093361409,-507.72495053,0.00014247,2]
[406695477,1772093361470,-503.98896467,0.00014247,2]
[406695478,1772093361528,-1000.0,0.00014247,2]
[406695479,1772093361587,-1500.0,0.00014368,2]
[406695480,1772093361644,-1116.00542625,0.00014368,2]
[406695481,1772093361700,-1500.0,0.00014368,2]
[406695482,1772093361754,-1500.0,0.00014368,2]
[406695483,1772093361808,-1500.0,0.00014368,2]
[406695484,1772093361868,-1500.0,0.00014368,2]
[406695485,1772093361925,-1500.0,0.00014368,2]
[406695486,1772093361980,-501.00332123,0.00014368,2]
[406695487,1772093362034,-1003.08394896,0.00014368,2]
[406695488,1772093362089,-1500.0,0.00014368,2]
[406695489,1772093362145,-338.71752763,0.00014368,2]
[406695490,1772093362202,-1500.0,0.00014368,2]
[406695491,1772093362258,-1428.21416617,0.00014368,2]
[406695492,1772093362314,-1500.0,0.00014368,2]
[406695493,1772093362369,-1500.0,0.00014368,2]
[406695494,1772093362428,-1500.0,0.00014368,2]
[406695495,1772093362485,-762.34730712,0.00014368,2]
[406695496,1772093362542,-500.0,0.00014491,2]
[406695497,1772093362598,-7373.87425038,0.00014598,2]
[406695498,1772093362651,-573.21055552,0.00014765,2]
[406695499,1772093362704,-900.0,0.00014768,2]
[406695500,1772093363000,-1500.0,0.00014795,2]
[406695501,1772093363066,-1500.0,0.00014795,2]
[406695502,1772093363121,-1500.0,0.00014795,2]
[406695503,1772093363178,-1500.0,0.00014795,2]
[406695504,1772093363236,-1095.57697702,0.00014795,2]
[406695505,1772093363294,-500.0,0.00014822,2]
[406695506,1772093363349,-1632.20606007,0.00014823,2]
[406695507,1772093363406,-161.75162055,0.00014823,2]
[406695508,1772093363462,-161.75162055,0.00014823,2]
[406695509,1772093363518,-587.0,0.00014846,2]
[406695510,1772093363572,-587.0,0.00014846,2]
[406695511,1772093363628,-587.0,0.00014847,2]
[406695512,1772093363683,-587.0,0.00014847,2]
[406695513,1772093363736,-2199.40930241,0.00014873,2]
[406695514,1772093363788,-155.0,0.0001488,2]
[406695515,1772093363839,-2351.0,0.00014914,2]
[406695516,1772093363892,-500.0,0.00014916,2]
[406695517,1772093363946,-500.0,0.00014916,2]
[406695518,1772093363998,-2000.0,0.00014916,2]
[406695519,1772093364052,-2000.0,0.00014916,2]
[406695520,1772093364104,-2000.0,0.00014916,2]
[406695521,1772093364157,-1522.63178723,0.00014916,2]
[406695522,1772093364211,-1407.49285395,0.00014916,2]
[406695523,1772093364263,-2000.0,0.00014916,2]
[406695524,1772093364314,-2000.0,0.00014916,2]
[406695525,1772093364365,-1583.40936768,0.00014916,2]
[406695526,1772093364415,-2000.0,0.00014916,2]
[406695527,1772093364462,-2000.0,0.00014916,2]
[406695528,1772093364509,-1948.99688877,0.00014916,2]
[406695529,1772093364564,-4374.94237694,0.00014958,2]
[406695530,1772093364612,-729.69388572,0.00014964,2]
[406695531,1772093364662,-4321.20905701,0.00014986,2]
[406695532,1772093364710,-49938.69108281,0.00015,2]
[406695533,1772093365617,-162.90613681,0.00013273,2]
[406695534,1772093365836,-500.0,0.00013273,2]
[406695535,1772093365859,-502.18371156,0.00013699,2]
[406695536,1772093365883,-158.42404385,0.00013699,2]
[406695537,1772093365904,-1000.0,0.00013821,2]
[406695538,1772093365925,-1500.0,0.00014368,2]
[406695539,1772093365946,-2007.26876726,0.00014916,2]
[406695540,1772093365966,-3082.00596855,0.00015,2]
[406695541,1772093365987,-2926.88440793,0.00015,2]
[406695542,1772093366297,-500.0,0.00013699,2]
[406695543,1772093366318,-682.94827589,0.00015,2]
[406695544,1772093366339,-159098.55082695,0.00015,3]
[406695545,1772093366359,-157.442,0.00015202,2]
[406695546,1772093366382,-864.0,0.00015215,2]
[406695547,1772093366402,-1076.65358506,0.00015316,2]
[406695548,1772093366425,-402.06464836,0.00015342,2]
[406695549,1772093366446,-1002.43885624,0.00015342,2]
[406695550,1772093366466,-444.77337273,0.00015342,2]
[406695551,1772093366487,-2000.0,0.00015342,2]
[406695552,1772093366506,-2500.0,0.00015464,2]
[406695553,1772093366526,-1041.14385184,0.00015464,2]
[406695554,1772093366546,-2066.43523267,0.00015464,2]
[406695555,1772093366567,-2500.0,0.00015464,2]
[406695556,1772093366587,-2500.0,0.00015464,2]
[406695557,1772093366607,-2500.0,0.00015464,2]
[406695558,1772093366626,-406.35658845,0.000155,30]
[406695563,1772093403340,500.0,0.00013273,2]
[406695564,1772093403432,500.0,0.00013273,2]
[406695566,1772093406730,500.0,0.00013273,2]
[406695567,1772093408063,500.0,0.00013273,2]
[406695568,1772093409123,459.3322691,0.00013273,2]
[406695601,1772093431640,-40.6677309,0.00013273,2]
[406695602,1772093431650,-500.0,0.00013273,2]
[406695603,1772093431659,-25.34729997,0.00013273,2]
[406695604,1772093431670,-253.08869634,0.00013273,2]
[406695607,1772093431695,-221.56400369,0.00013273,2]
[406695608,1772093431704,-28.96239631,0.00013273,2]
[406695627,1772093431882,-69.70236271,0.00013273,2]
[406695839,1772093438133,-401.33524098,0.00013273,2]
[406695840,1772093438142,-500.0,0.00013273,2]
[406695841,1772093438151,-508.92724247,0.00013273,2]
[406695842,1772093438159,-300.0,0.00013698,2]